[Event "Ramco Open 2018"]
[Site "Virudhunagar"]
[Date "2018.11.29"]
[Round "1"]
[White "Sairam B Subramaniam"]
[Black "Srihari L R"]
[Result "0-1"]
[ECO "A53"]
[WhiteElo "1232"]
[BlackElo "2282"]
[Annotator "NA RC"]
[PlyCount "46"]
[EventDate "2018.11.29"]
[EventType "swiss"]
[EventCountry "IND"]
[SourceTitle "playchess.com"]
[Source "ChessBase"]
[SourceQuality "1"]
[TimeControl "5400+30"]

1. Nf3 {[%emt 0:00:00]} Nf6 {[%emt 0:00:00]} 2. d4 {[%emt 0:00:00]} d6 {[%emt 0:00:07]} 3. c4 {[%emt 0:00:02]} Bg4 {[%emt 0:00:16]} 4. Nc3 {[%emt 0:00:21]} Nbd7 {[%emt 0:00:24]} 5. Bf4 {[%emt 0:00:35]} g6 {[%emt 0:00:52]} 6. e3 {[%emt 0:01:25]} Bg7 {[%emt 0:01:16]} 7. Be2 {[%emt 0:00:43]} Nh5 {[%emt 0:06:44]} 8. Bg3 {[%emt 0:03:49]} c5 {[%emt 0:06:29]} 9. O-O {[%emt 0:06:23]} Nxg3 {[%emt 0:01:32]} 10. fxg3 {[%emt 0:00:40]} cxd4 {[%emt 0:01:30]} 11. Nxd4 {[%emt 0:00:51]} Bxe2 {[%emt 0:00:06]} 12. Qxe2 {[%emt 0:01:49]} O-O {[%emt 0:00:15]} 13. Rf2 {[%emt 0:03:57]} Rc8 {[%emt 0:00:36]} 14. Raf1 {[%emt 0:03:26]} a6 {[%emt 0:05:43]} 15. Ne4 {[%emt 0:06:39]} Ne5 {[%emt 0:07:41]} 16. b3 {[%emt 0:04:22]} d5 {[%emt 0:00:49]} 17. cxd5 {[%emt 0:01:05]} Qxd5 {[%emt 0:00:11]} 18. Nd2 {[%emt 0:03:52]} Rc3 {[%emt 0:08:01]} 19. h3 {[%emt 0:02:35]} Bh6 {[%emt 0:01:46]} 20. Kh1 {[%emt 0:17:37]} Rxe3 {[%emt 0:01:11]} 21. Qd1 {[%emt 0:01:29]} Qxd4 {[%emt 0:00:09]} 22. Nf3 {[%emt 0:00:47] Nxf3Rxf3 [%clk 0:38:31] Qxd1Rxd1 [%clk 0:38:55] Rxf3gxf3 [%clk 0:39:16]} Rc8 {[%emt 0:00:00]} 23. Re1 {[%emt 0:00:01]} e6 {[%emt 0:00:03] Re2 [%clk 0:39:15] Rc1+ [%clk 0:56:06] Kg2 [%clk 0:39:36] Rd1 [%clk 0:56:32] f4 [%clk 0:39:40] g5 [%clk 0:56:43] Kf3 [%clk 0:37:31] gxf4 [%clk 0:57:06] gxf4 [%clk 0:37:48] Rf1+ [%clk 0:57:05]} 0-1

[Event "Ramco Open 2018"]
[Site "Virudhunagar"]
[Date "2018.11.30"]
[Round "3"]
[White "Raghul, Saro S"]
[Black "Muthaiah AL"]
[Result "0-1"]
[ECO "A40"]
[WhiteElo "1643"]
[BlackElo "2408"]
[Annotator "RC"]
[PlyCount "116"]
[EventDate "2018.11.29"]
[EventType "swiss"]
[EventCountry "IND"]
[SourceTitle "playchess.com"]
[Source "ChessBase"]
[SourceQuality "1"]
[TimeControl "5400+30"]

1. d4 {[%emt 0:00:00]} g6 {[%emt 0:00:56]} 2. Nf3 {[%emt 0:00:51]} Bg7 {[%emt 0:00:13]} 3. e3 {[%emt 0:00:11]} c5 {[%emt 0:00:35]} 4. c3 {[%emt 0:00:28]} b6 {[%emt 0:01:04]} 5. dxc5 {[%emt 0:01:51]} bxc5 {[%emt 0:00:06]} 6. Qd5 {[%emt 0:00:35]} Nc6 {[%emt 0:00:06]} 7. Qxc5 {[%emt 0:01:42]} Nf6 {[%emt 0:00:11]} 8. Nbd2 {[%emt 0:04:05]} O-O {[%emt 0:01:34]} 9. Be2 {[%emt 0:01:15]} Bb7 {[%emt 0:02:06]} 10. O-O {[%emt 0:02:08]} d6 {[%emt 0:02:15]} 11. Qa3 {[%emt 0:05:12]} a5 {[%emt 0:01:02]} 12. Rd1 {[%emt 0:01:58]} a4 {[%emt 0:02:41]} 13. Nd4 {[%emt 0:04:25]} Qc7 {[%emt 0:03:55]} 14. Nxc6 {[%emt 0:06:00]} Bxc6 {[%emt 0:00:49]} 15. Bf3 {[%emt 0:03:47]} Rfb8 {[%emt 0:06:35]} 16. Bxc6 {[%emt 0:06:55]} Qxc6 {[%emt 0:00:24]} 17. c4 {[%emt 0:00:02]} Nd7 {[%emt 0:04:52]} 18. Qd3 {[%emt 0:06:43]} a3 {[%emt 0:00:49]} 19. Nb3 {[%emt 0:07:32]} axb2 {[%emt 0:01:32]} 20. Bxb2 {[%emt 0:00:34]} Bxb2 {[%emt 0:00:08]} 21. Rab1 {[%emt 0:00:02]} Bf6 {[%emt 0:00:38]} 22. Nd4 {[%emt 0:01:07]} Bxd4 {[%emt 0:00:40]} 23. exd4 {[%emt 0:00:28]} Rxb1 {[%emt 0:00:46]} 24. Qxb1 {[%emt 0:01:36]} Qxc4 {[%emt 0:00:13]} 25. Qb7 {[%emt 0:00:40]} Qa4 {[%emt 0:00:06]} 26. Re1 {[%emt 0:00:31]} e6 {[%emt 0:00:34]} 27. d5 {[%emt 0:01:39]} e5 {[%emt 0:01:03]} 28. Qc7 {[%emt 0:00:45]} Qa5 {[%emt 0:00:07]} 29. Qc1 {[%emt 0:00:53]} Nc5 {[%emt 0:00:10]} 30. Rf1 {[%emt 0:01:01]} Qxa2 {[%emt 0:00:10]} 31. Qd1 {[%emt 0:00:44]} Qc4 {[%emt 0:01:03]} 32. h3 {[%emt 0:01:35]} Kg7 {[%emt 0:00:07]} 33. Kh1 {[%emt 0:00:51]} Ra2 {[%emt 0:00:29]} 34. Kg1 {[%emt 0:00:58]} Nd3 {[%emt 0:02:00]} 35. Qf3 {[%emt 0:02:28]} Qd4 {[%emt 0:00:26]} 36. g4 {[%emt 0:01:16]} Rxf2 {[%emt 0:00:35]} 37. Rxf2 {[%emt 0:00:08]} Qxf2+ {[%emt 0:00:05]} 38. Qxf2 {[%emt 0:00:08]} Nxf2 {[%emt 0:00:06]} 39. Kxf2 {[%emt 0:00:05]} f5 {[%emt 0:00:11]} 40. g5 {[%emt 0:00:27]} Kf7 {[%emt 0:00:05]} 41. Ke3 {[%emt 0:00:20]} Ke7 {[%emt 0:00:05]} 42. Kd3 {[%emt 0:00:07]} Kd7 {[%emt 0:00:05]} 43. h4 {[%emt 0:00:14]} Kc7 {[%emt 0:00:05]} 44. Kc3 {[%emt 0:00:06]} Kb6 {[%emt 0:00:05]} 45. Kb4 {[%emt 0:00:41]} f4 {[%emt 0:00:07]} 46. Kc4 {[%emt 0:00:04]} e4 {[%emt 0:00:04]} 47. Kd4 {[%emt 0:00:09]} e3 {[%emt 0:00:07]} 48. Kd3 {[%emt 0:00:08]} Kc5 {[%emt 0:00:05]} 49. Ke2 {[%emt 0:00:03]} Kd4 {[%emt 0:00:12]} 50. h5 {[%emt 0:00:06]} Ke4 {[%emt 0:00:05]} 51. hxg6 {[%emt 0:00:06]} hxg6 {[%emt 0:00:05]} 52. Ke1 {[%emt 0:00:03]} f3 {[%emt 0:00:08]} 53. Kf1 {[%emt 0:00:03]} Kd3 {[%emt 0:00:06]} 54. Kg1 {[%emt 0:00:04]} Ke2 {[%emt 0:00:08]} 55. Kh1 {[%emt 0:00:07]} f2 {[%emt 0:00:07]} 56. Kh2 {[%emt 0:00:02]} Kf3 {[%emt 0:00:09]} 57. Kh3 {[%emt 0:00:11]} f1=Q+ {[%emt 0:00:07]} 58. Kh4 {[%emt 0:00:05]} Qh1# {[%emt 0:00:09]} 0-1

[Event "Ramco Open 2018"]
[Site "Virudhunagar"]
[Date "2018.11.30"]
[Round "4"]
[White "Muthaiah AL"]
[Black "Gunasekaran, K.."]
[Result "0-1"]
[ECO "D60"]
[WhiteElo "2408"]
[BlackElo "1987"]
[Annotator "RC"]
[PlyCount "154"]
[EventDate "2018.11.29"]
[EventType "swiss"]
[EventCountry "IND"]
[SourceTitle "playchess.com"]
[Source "ChessBase"]
[SourceQuality "1"]
[TimeControl "5400+30"]

1. d4 {[%emt 0:00:00]} d5 {[%emt 0:00:00]} 2. c4 {[%emt 0:00:00]} c6 {[%emt 1:31:00]} 3. Nc3 {[%emt 0:00:00]} Nf6 {[%emt 0:00:00]} 4. Nf3 {[%emt 0:00:00]} e6 {[%emt 0:00:00]} 5. Bg5 {[%emt 0:00:12]} Nbd7 {[%emt 0:00:00]} 6. e3 {[%emt 0:00:13]} Be7 {[%emt 0:00:00]} 7. Bd3 {[%emt 0:00:50]} h6 {[%emt 0:00:00]} 8. Bh4 {[%emt 0:00:07]} b6 {[%emt 0:00:00]} 9. O-O {[%emt 0:02:48]} O-O {[%emt 0:00:00]} 10. Qe2 {[%emt 0:01:50]} Bb7 {[%emt 0:00:00]} 11. Rfd1 {[%emt 0:00:47]} dxc4 {[%emt 0:00:00]} 12. Bxc4 {[%emt 0:00:20]} Nd5 {[%emt 0:00:00]} 13. Bg3 {[%emt 0:01:01]} Nxc3 {[%emt 0:00:00]} 14. bxc3 {[%emt 0:00:09]} Nf6 {[%emt 0:00:00]} 15. e4 {[%emt 0:01:43]} Re8 {[%emt 0:00:00]} 16. Ne5 {[%emt 0:09:59]} b5 {[%emt 0:00:00]} 17. Bb3 {[%emt 0:05:38]} Qb6 {[%emt 0:00:00]} 18. c4 {[%emt 0:06:25]} c5 {[%emt 0:00:00]} 19. dxc5 {[%emt 0:05:11]} Bxc5 {[%emt 0:00:00]} 20. cxb5 {[%emt 0:00:27]} Rad8 {[%emt 0:00:00]} 21. Bc2 {[%emt 0:13:33]} Bd4 {[%emt 0:00:00]} 22. Rab1 {[%emt 0:04:38]} Ba8 {[%emt 0:00:00]} 23. Nf3 {[%emt 0:10:36]} Bc5 {[%emt 0:00:00]} 24. a4 {[%emt 0:02:53]} Qb7 {[%emt 0:00:00]} 25. Nd2 {[%emt 0:01:08]} Rc8 {[%emt 0:00:00]} 26. Bd3 {[%emt 0:05:32]} Qe7 {[%emt 0:00:00]} 27. Nb3 {[%emt 0:01:53]} Bb4 {[%emt 0:00:00]} 28. f3 {[%emt 0:04:01]} Nh5 {[%emt 0:00:00]} 29. Bf2 {[%emt 0:01:05]} Nf4 {[%emt 0:00:00]} 30. Qe3 {[%emt 0:01:07]} Qg5 {[%emt 0:00:00]} 31. g3 {[%emt 0:01:54]} Nh3+ {[%emt 0:00:00]} 32. Kg2 {[%emt 0:00:06]} Nxf2 {[%emt 0:00:00]} 33. Qxg5 {[%emt 0:00:22]} hxg5 {[%emt 0:00:00]} 34. Kxf2 {[%emt 0:00:06]} Kf8 {[%emt 0:00:00]} 35. Rbc1 {[%emt 0:00:11]} Ke7 {[%emt 0:00:00]} 36. Rxc8 {[%emt 0:00:51]} Rxc8 {[%emt 0:00:00]} 37. Rc1 {[%emt 0:00:13]} Rxc1 {[%emt 0:00:00]} 38. Nxc1 {[%emt 0:00:11]} Bc5+ {[%emt 0:00:19]} 39. Ke2 {[%emt 0:00:26]} Bg1 {[%emt 0:00:07]} 40. Kf1 {[%emt 0:00:37]} Be3 {[%emt 0:00:22]} 41. Nb3 {[%emt 0:00:08]} Kd6 {[%emt 0:00:24]} 42. Ke2 {[%emt 0:01:01]} Bg1 {[%emt 0:00:28]} 43. h3 {[%emt 0:00:11]} g6 {[%emt 0:00:40]} 44. g4 {[%emt 0:06:08]} Ke5 {[%emt 0:02:22]} 45. Na5 {[%emt 0:03:04]} Bc5 {[%emt 0:04:22]} 46. Nb3 {[%emt 0:03:06]} Bb6 {[%emt 0:00:27]} 47. a5 {[%emt 0:00:30]} Bg1 {[%emt 0:00:15]} 48. Kd2 {[%emt 0:02:38]} f5 {[%emt 0:00:18]} 49. Kc3 {[%emt 0:00:59]} Bf2 {[%emt 0:00:12]} 50. Kc4 {[%emt 0:00:51]} Be1 {[%emt 0:00:18]} 51. a6 {[%emt 0:03:22]} Bf2 {[%emt 0:00:44]} 52. Nc5 {[%emt 0:00:05]} Kd6 {[%emt 0:00:55]} 53. Na4 {[%emt 0:00:36]} Kc7 {[%emt 0:01:01]} 54. gxf5 {[%emt 0:01:09]} gxf5 {[%emt 0:00:05]} 55. Kc3 {[%emt 0:00:18]} Kd6 {[%emt 0:01:07]} 56. Kb4 {[%emt 0:01:05]} Be1+ {[%emt 0:00:11]} 57. Kc4 {[%emt 0:00:21]} Bf2 {[%emt 0:00:03]} 58. Bc2 {[%emt 0:00:18]} Bg1 {[%emt 0:01:24]} 59. Bb1 {[%emt 0:00:11]} Bf2 {[%emt 0:00:20]} 60. Kd3 {[%emt 0:00:39]} Bg1 {[%emt 0:01:26]} 61. Ke2 {[%emt 0:01:13]} Ke5 {[%emt 0:00:56]} 62. Bc2 {[%emt 0:00:32]} Bd4 {[%emt 0:00:23]} 63. Kd2 {[%emt 0:00:23]} Bg1 {[%emt 0:01:03]} 64. Kc3 {[%emt 0:00:17]} Kd6 {[%emt 0:00:24]} 65. Kc4 {[%emt 0:00:25]} Bf2 {[%emt 0:00:22]} 66. Nc3 {[%emt 0:00:48]} Ke5 {[%emt 0:00:17]} 67. Nd1 {[%emt 0:01:13]} Bb6 {[%emt 0:00:28]} 68. Nb2 {[%emt 0:00:24]} Kf4 {[%emt 0:00:32]} 69. Na4 {[%emt 0:00:25]} Bg1 {[%emt 0:00:42]} 70. b6 {[%emt 0:00:31]} axb6 {[%emt 0:00:03]} 71. Kb5 {[%emt 0:00:06]} Kxf3 {[%emt 0:01:57]} 72. exf5 {[%emt 0:00:07]} exf5 {[%emt 0:00:17]} 73. Bxf5 {[%emt 0:00:22]} Kf4 {[%emt 0:00:08]} 74. Nxb6 {[%emt 0:02:39]} Bxb6 {[%emt 0:00:34]} 75. Bc8 {[%emt 0:01:45]} Ba7 {[%emt 0:00:49]} 76. Kc4 {[%emt 0:00:33]} Bg2 {[%emt 0:00:11]} 77. Be6 {[%emt 0:00:32]} Bf1+ {[%emt 0:02:02] Kd4 [%clk 0:00:00] Ke5+Bg4+ [%clk 0:00:00] Kf4+ [%clk 0:00:00]} 0-1

[Event "Ramco Open 2018"]
[Site "Virudhunagar"]
[Date "2018.11.30"]
[Round "4"]
[White "Srihari L R"]
[Black "Prakashram R"]
[Result "1-0"]
[ECO "A05"]
[WhiteElo "2282"]
[BlackElo "1953"]
[Annotator "RC"]
[PlyCount "43"]
[EventDate "2018.11.29"]
[EventType "swiss"]
[EventCountry "IND"]
[SourceTitle "playchess.com"]
[Source "ChessBase"]
[SourceQuality "1"]
[TimeControl "5400+30"]

1. Nf3 {[%emt 0:00:00]} c5 {[%emt 0:00:42]} 2. g3 {[%emt 0:00:34]} Nf6 {[%emt 0:01:05]} 3. Bg2 {[%emt 0:00:30]} g6 {[%emt 0:01:36]} 4. b3 {[%emt 0:03:48]} Bg7 {[%emt 0:00:10]} 5. Bb2 {[%emt 0:00:12]} O-O {[%emt 0:00:27]} 6. O-O {[%emt 0:00:07]} d5 {[%emt 0:01:37]} 7. c4 {[%emt 0:00:49]} d4 {[%emt 0:00:59]} 8. b4 {[%emt 0:05:29]} Nfd7 {[%emt 0:01:54]} 9. d3 {[%emt 0:03:22]} e5 {[%emt 0:02:04]} 10. Nbd2 {[%emt 0:08:58]} Re8 {[%emt 0:01:23]} 11. Ne4 {[%emt 0:05:46]} Qc7 {[%emt 0:01:37]} 12. bxc5 {[%emt 0:17:05]} Nxc5 {[%emt 0:00:17]} 13. Nxc5 {[%emt 0:00:02]} Qxc5 {[%emt 0:00:10]} 14. Nd2 {[%emt 0:00:06]} Nc6 {[%emt 0:01:24]} 15. a4 {[%emt 0:00:50]} a5 {[%emt 0:05:11]} 16. Ne4 {[%emt 0:09:25]} Qe7 {[%emt 0:00:56]} 17. Ba3 {[%emt 0:01:34]} Nb4 {[%emt 0:00:09]} 18. c5 {[%emt 0:00:06]} Rd8 {[%emt 0:04:09]} 19. Qd2 {[%emt 0:05:43]} Nc6 {[%emt 0:04:08]} 20. Nd6 {[%emt 0:01:07]} Be6 {[%emt 0:01:17]} 21. Rfb1 {[%emt 0:00:20]} Rab8 {[%emt 0:02:54]} 22. Rb6 {[%emt 0:01:46]} 1-0

[Event "Ramco Open 2018"]
[Site "Virudhunagar"]
[Date "2018.11.30"]
[Round "4"]
[White "Harshad S"]
[Black "Ravi, Thandalam Shanmugam"]
[Result "1/2-1/2"]
[ECO "C54"]
[WhiteElo "1939"]
[BlackElo "2294"]
[Annotator "RC"]
[PlyCount "41"]
[EventDate "2018.11.29"]
[EventType "swiss"]
[EventCountry "IND"]
[SourceTitle "playchess.com"]
[Source "ChessBase"]
[SourceQuality "1"]
[TimeControl "5400+30"]

1. e4 {[%emt 0:00:00]} e5 {[%emt 0:00:00]} 2. Nf3 {[%emt 0:00:00]} Nc6 {[%emt 0:00:00]} 3. Bc4 {[%emt 0:03:09]} Bc5 {[%emt 0:00:04]} 4. c3 {[%emt 0:00:35]} Nf6 {[%emt 0:00:29]} 5. d4 {[%emt 0:00:29]} exd4 {[%emt 0:00:03]} 6. e5 {[%emt 0:02:39]} d5 {[%emt 0:06:16]} 7. Bb5 {[%emt 0:00:17]} Ne4 {[%emt 0:01:45]} 8. cxd4 {[%emt 0:00:09]} Bb6 {[%emt 0:12:45]} 9. Be3 {[%emt 0:03:51]} O-O {[%emt 0:05:46]} 10. O-O {[%emt 0:00:41]} f6 {[%emt 0:03:27]} 11. exf6 {[%emt 0:00:54]} Qxf6 {[%emt 0:00:45]} 12. Nc3 {[%emt 0:01:22]} Nxc3 {[%emt 0:06:08]} 13. bxc3 {[%emt 0:00:45]} Bg4 {[%emt 0:07:14]} 14. Be2 {[%emt 0:02:09]} Bxf3 {[%emt 0:04:19]} 15. Bxf3 {[%emt 0:00:33]} Rad8 {[%emt 0:00:11]} 16. Be2 {[%emt 0:03:35]} Ne7 {[%emt 0:09:54]} 17. Qd2 {[%emt 0:00:58]} c6 {[%emt 0:02:55]} 18. Bg5 {[%emt 0:02:56]} Qf7 {[%emt 0:09:09]} 19. Bh5 {[%emt 0:02:09]} g6 {[%emt 0:02:53]} 20. Rfe1 {[%emt 0:01:59]} Rd7 {[%emt 0:08:38]} 21. Bg4 {[%emt 0:01:15]} 1/2-1/2

[Event "Ramco Open 2018"]
[Site "Virudhunagar"]
[Date "2018.12.01"]
[Round "6"]
[White "Srihari L R"]
[Black "Chaithanyaa K G"]
[Result "1-0"]
[ECO "A14"]
[WhiteElo "2282"]
[BlackElo "2005"]
[Annotator "NA"]
[PlyCount "97"]
[EventDate "2018.11.29"]
[EventType "swiss"]
[EventCountry "IND"]
[SourceTitle "playchess.com"]
[Source "ChessBase"]
[SourceQuality "1"]
[TimeControl "5400+30"]

1. Nf3 {[%emt 0:00:00]} Nf6 {[%emt 0:05:57]} 2. c4 {[%emt 0:02:05]} e6 {[%emt 1:25:03]} 3. b3 {[%emt 0:05:26]} d5 {[%emt 0:00:00]} 4. Bb2 {[%emt 0:00:05]} Be7 {[%emt 0:00:00]} 5. g3 {[%emt 0:00:08]} O-O {[%emt 0:00:00]} 6. Bg2 {[%emt 0:00:04]} b6 {[%emt 0:00:00]} 7. O-O {[%emt 0:00:07]} Bb7 {[%emt 0:00:00]} 8. e3 {[%emt 0:00:17]} Nbd7 {[%emt 0:00:00]} 9. Qe2 {[%emt 0:00:08]} Re8 {[%emt 0:00:00]} 10. Rd1 {[%emt 0:02:07] LiveBook: 6 Games A14: English Opening: 1...e6 with b3 by White} (10. d4 Ne4 11. Nbd2 Ndf6 12. Rfd1 a5 13. a3 Bd6 14. Ne5 Qe7 15. Nf1 Bxe5 16. dxe5 Nd7 17. Qc2 Rac8 {1-0 (30) Movsesian,S (2673)-Meskovs,N (2489) Tallinn 2016}) 10... Bf8 {[%emt 0:00:00]} 11. d4 {[%emt 0:00:31]} c5 $146 {[%emt 0:00:00]} ({Predecessor:} 11... Rc8 12. Nc3 Bb4 13. Rac1 Qe7 14. Ne1 c6 15. Nd3 Ba6 16. Nxb4 Qxb4 17. Nb1 dxc4 {½-½ (43) Santos Ruiz,M (2510)-Ranaivoharisoa,A (2142) Caleta 2018}) 12. Nc3 {[%emt 0:00:30]} Rc8 {[%emt 0:00:00]} 13. Rac1 cxd4 {[%emt 0:00:00]} 14. Nxd4 {[%emt 0:17:10]} Bb4 {[%emt 0:00:00]} 15. cxd5 {[%emt 0:02:49]} Bxc3 {[%emt 0:00:00]} 16. dxe6 {[%emt 0:15:06]} Bxg2 {[%emt 0:00:00]} 17. exd7 {[%emt 0:03:46]} Qxd7 {[%emt 0:00:00]} 18. Kxg2 {[%emt 0:00:52]} Bxd4 $16 {[%emt 0:00:00]} 19. Rxd4 {[%emt 0:13:19]} Qxd4 {[%emt 0:00:00]} 20. Rxc8 {[%emt 0:00:54]} Qe4+ {[%emt 0:00:00]} 21. f3 {[%emt 0:01:20]} Qb1 {[%emt 0:00:00]} 22. Rxe8+ {[%emt 0:00:58]} Nxe8 {[%emt 0:00:00]} 23. Bd4 {[%emt 0:00:42]} Nd6 {[%emt 0:00:00]} 24. e4 {[%emt 0:00:57]} h6 {[%emt 0:00:00]} 25. Bf2 {[%emt 0:00:34]} Kh7 {[%emt 0:00:00]} 26. Qa6 {[%emt 0:03:59]} Qc2 {[%emt 0:00:00]} 27. Qxa7 {[%emt 0:01:10]} Nxe4 {[%emt 0:00:00]} 28. Qxb6 {[%emt 0:00:08]} Nd2 {[%emt 0:00:00]} 29. Qa6 {[%emt 0:05:36]} Nb1 {[%emt 0:00:00]} 30. Qc4 {[%emt 0:02:23]} Qxa2 {[%emt 0:00:00]} 31. Qxf7 {[%emt 0:00:31]} Nd2 {[%emt 0:00:00]} 32. Qf5+ {[%emt 0:00:27]} Kh8 {[%emt 0:00:00]} 33. b4 {[%emt 0:03:53]} Qc4 {[%emt 0:00:00]} 34. Qf8+ {[%emt 0:00:10]} Kh7 {[%emt 0:00:00]} 35. g4 {[%emt 0:00:15]} Qf1+ {[%emt 0:00:00]} 36. Kg3 {[%emt 0:00:10]} Qe2 {[%emt 0:00:00]} 37. Qf5+ {[%emt 0:04:26]} Kh8 {[%emt 0:00:15]} 38. Qc8+ {[%emt 0:00:36]} Kh7 {[%emt 0:00:01]} 39. Qc2+ {[%emt 0:00:28]} Kh8 {[%emt 0:00:10]} 40. Qc3 {[%emt 0:00:42]} Nf1+ {[%emt 0:01:10]} 41. Kg2 {[%emt 0:00:07]} Nd2 {[%emt 0:00:23]} 42. b5 {[%emt 0:00:58]} Nc4 {[%emt 0:00:53]} 43. Kg3 {[%emt 0:01:13]} Qe6 {[%emt 0:03:43]} 44. Qd4 {[%emt 0:01:08]} Nd6 {[%emt 0:01:07]} 45. b6 {[%emt 0:00:39]} h5 {[%emt 0:00:26]} 46. Qf4 {[%emt 0:01:09]} hxg4 {[%emt 0:00:09]} 47. Qxg4 {[%emt 0:01:16]} Qd5 {[%emt 0:00:18]} 48. Kg2 {[%emt 0:00:37]} Kg8 {[%emt 0:00:27]} 49. h4 {[%emt 0:00:10]} 1-0

[Event "Ramco Open 2018"]
[Site "Virudhunagar"]
[Date "2018.12.02"]
[Round "8"]
[White "Srihari L R"]
[Black "Balaji Sekar"]
[Result "1/2-1/2"]
[ECO "A14"]
[WhiteElo "2282"]
[BlackElo "1189"]
[Annotator "NA"]
[PlyCount "93"]
[EventDate "2018.11.29"]
[EventType "swiss"]
[EventCountry "IND"]
[SourceTitle "playchess.com"]
[Source "ChessBase"]
[SourceQuality "1"]
[TimeControl "5400+30"]

1. Nf3 {[%emt 0:00:00]} Nf6 {[%emt 0:00:07]} 2. c4 {[%emt 0:02:37]} e6 {[%emt 0:00:08]} 3. b3 {[%emt 0:00:21]} d5 {[%emt 0:00:08]} 4. Bb2 {[%emt 0:00:14]} Be7 {[%emt 0:01:42]} 5. g3 {[%emt 0:00:36]} O-O {[%emt 0:00:16]} 6. Bg2 {[%emt 0:00:11]} c5 {[%emt 0:00:37]} 7. O-O {[%emt 0:00:27]} Nc6 {[%emt 0:00:07]} 8. e3 {[%emt 0:00:07]} b6 {[%emt 0:00:57]} 9. Qe2 {[%emt 0:00:10]} Bb7 {[%emt 0:01:30] LiveBook: 476 Games} 10. Rd1 {[%emt 0:01:33]} dxc4 {[%emt 0:04:09]} 11. bxc4 {[%emt 0:00:21]} Qc7 {[%emt 0:00:12]} 12. Nc3 {[%emt 0:00:08]} a6 {[%emt 0:00:05]} 13. Rac1 {[%emt 0:00:47]} Rfd8 {[%emt 0:01:32]} 14. d3 {[%emt 0:13:53]} Rac8 {[%emt 0:12:41]} 15. Ne1 {[%emt 0:05:48] A14: English Opening: 1...e6 with b3 by White} (15. h3 Na5 16. Ne1 Bxg2 17. Nxg2 Qb7 18. a4 Nd7 19. f4 Bf6 20. g4 Nc6 21. g5 Be7 22. h4 Nb4 {1-0 (46) Dubov,D (2629)-Dragun,K (2530) Warsaw 2013}) 15... Na5 $146 {[%emt 0:08:00]} ({Predecessor:} 15... Na7 16. f4 b5 17. g4 b4 18. Nb1 Nd7 19. g5 e5 20. Bxb7 Qxb7 21. fxe5 Bxg5 22. Nd2 Rc6 {½-½ (64) Contin,D (2275)-Amura,C (2080) Buenos Aires 1987}) 16. f4 {[%emt 0:02:16]} Bc6 {[%emt 0:09:15]} 17. a4 {[%emt 0:03:07]} Nd7 {[%emt 0:06:23]} 18. Qc2 {[%emt 0:15:50]} Bf6 {[%emt 0:08:09]} 19. Rb1 {[%emt 0:01:58]} Nb8 {[%emt 0:03:44]} 20. g4 {[%emt 0:05:23]} Bxg2 {[%emt 0:19:29]} 21. Qxg2 {[%emt 0:06:02]} Qc6 {[%emt 0:00:53]} 22. Qc2 {[%emt 0:01:51]} h6 {[%emt 0:03:39]} 23. Ne2 {[%emt 0:01:57]} Bxb2 {[%emt 0:00:27]} 24. Rxb2 {[%emt 0:01:07]} Qc7 {[%emt 0:00:45]} 25. Ng3 {[%emt 0:05:42]} Nbc6 $11 {[%emt 0:00:53]} 26. Qc3 {[%emt 0:00:12]} Rb8 {[%emt 0:09:29]} 27. Rg2 {[%emt 0:05:10]} e5 {[%emt 0:02:54]} 28. Nf3 {[%emt 0:01:23]} exf4 {[%emt 0:01:40]} 29. Nh5 {[%emt 0:00:29]} f6 {[%emt 0:00:01]} 30. Nxf4 {[%emt 0:01:25]} Nd4 {[%emt 0:01:18]} 31. Rf1 {[%emt 0:00:18]} Nxf3+ {[%emt 0:01:02]} 32. Rxf3 {[%emt 0:00:02]} b5 {[%emt 0:02:14]} 33. Nd5 {[%emt 0:00:25]} b4 {[%emt 0:00:13]} 34. Qe1 {[%emt 0:03:32]} Qd6 {[%emt 0:00:25]} 35. Rgf2 {[%emt 0:10:43]} Rf8 {[%emt 0:00:27]} 36. Qb1 {[%emt 0:00:37]} Nc6 {[%emt 0:00:20]} 37. d4 {[%emt 0:00:16]} Ne7 {[%emt 0:02:39]} 38. dxc5 {[%emt 0:02:53]} Qxc5 {[%emt 0:00:00]} 39. Qb3 {[%emt 0:00:13]} Nxd5 {[%emt 0:00:00]} 40. cxd5 {[%emt 0:00:01]} Qc3 {[%emt 0:00:41]} 41. Qxc3 {[%emt 0:00:36]} bxc3 {[%emt 0:00:01]} 42. Rc2 {[%emt 0:00:02]} Rfc8 {[%emt 0:00:17]} 43. d6 {[%emt 0:02:37]} Rb4 {[%emt 0:00:32]} 44. Rf4 {[%emt 0:00:38]} Rb1+ {[%emt 0:00:44]} 45. Rf1 {[%emt 0:03:39]} Rb4 {[%emt 0:00:18]} 46. Rf4 {[%emt 0:00:05]} Rb1+ {[%emt 0:00:51]} 47. Rf1 {[%emt 0:00:09]} 1/2-1/2